Cogmind - Beta 14 @@@ ROGUE MODE // 2024.08.22 @ 19:03:35 Player: Daffa0360 Result: Self-destructed Performance ------------- Evolutions (2) 1000 Regions Visited (4) 800 Robots Destroyed (33) 165 Value Destroyed (630) 630 Prototype IDs (19) 380 Alien Tech Used (0) 0 Bonus (363) 363 TOTAL SCORE: 3338 Bonus ------- Follower Combat Kills 405 Friendly Fire -42 Cogmind --------- Core Integrity 227/550 Matter 141/300 Energy 180/180 System Corruption 0% Temperature Cool (13) Movement Core (150) Ox2 Location -8/Materials Parts ------- > --- POWER (1) -------- Meta Core > --- PROPULSION (2) --- (None) > --- UTILITY (6+1) ---- Advanced Visual Processing Unit Improved Targeting Computer Target Analyzer Hacking Suite Makeshift Hacking Suite System Shield > --- WEAPON (2+1) ----- Autogun > --- INVENTORY (5) ---- V3-11A's Pendant Beamcaster Gauss Rifle Improved Grenade Launcher Makeshift Sword Peak State ------------ > --- POWER ------------ Meta Core > --- PROPULSION ------- Carbon-fiber Leg Compact Wheel Aerolev Unit > --- UTILITY ---------- Advanced Visual Processing Unit Target Analyzer Improved Weapon Shielding Hacking Suite Makeshift Hacking Suite V3-11A's Pendant > --- WEAPON ----------- Beamcaster Beamcaster > --- INVENTORY -------- Seismic Detector High-powered Shotgun Slug Cannon Improved Grenade Launcher Makeshift Sword [Rating: 51] Favorites ----------- Power Meta Core Engine Light Ion Engine Power Core Meta Core Propulsion Carbon-fiber Leg Leg Carbon-fiber Leg Wheel Compact Wheel Hover Unit Airjet Utility Advanced Visual Processing Unit Device V3-11A's Pendant Storage Small Storage Unit Processor Advanced Visual Processing Unit Hackware Makeshift Hacking Suite Protection Improved Weapon Shielding Weapon Beamcaster Energy Gun Beamcaster Ballistic Gun Assault Rifle Ballistic Cannon Slug Cannon Launcher Grenade Launcher Build | -11 -10 -10 -10 -8 ------- Run | Yrd Mat Min Sub Mat Slots Evolved 4 | . . . . 4 Power . | . . . . . Propulsion . | . . . . . Utility 4 | . . . . 4 Weapon . | . . . . . Parts Attached 43 | 6 11 8 2 16 Power 4 | 1 1 1 1 . Engine 3 | 1 1 1 . . Core 1 | . . . 1 . Reactor . | . . . . . Propulsion 16 | 2 6 3 . 5 Treads . | . . . . . Leg 1 | . . 1 . . Wheel 3 | 2 . . . 1 Hover 12 | . 6 2 . 4 Flight . | . . . . . Utility 12 | 1 . 2 1 8 Device 4 | . . 1 1 2 Storage 1 | 1 . . . . Processor 3 | . . 1 . 2 Hackware 3 | . . . . 3 Protection 1 | . . . . 1 Artifact . | . . . . . Weapon 11 | 2 4 2 . 3 Energy Gun 3 | . . 2 . 1 Energy Cannon . | . . . . . Ballistic Gun 5 | 2 2 . . 1 Ballistic Cannon 1 | . . . . 1 Launcher 2 | . 2 . . . Special Weapon . | . . . . . Impact Weapon . | . . . . . Slashing Weapon . | . . . . . Piercing Weapon . | . . . . . Special Melee Weapon . | . . . . . Unidentified Prototypes 3 | . . . 1 2 Parts Lost 13 | . 2 4 1 6 Power 1 | . . 1 . . Propulsion 8 | . 2 2 1 3 Utility 2 | . . . . 2 Weapon 2 | . . 1 . 1 Highest Loss Streak 3 | . 2 2 1 3 To Critical Strikes . | . . . . . Average Slot Usage (%) 74 | . 81 93 69 73 Engine 4 | . 14 12 2 . Core 6 | . . . 8 7 Leg 6 | . . 2 10 1 Wheel 1 | . 5 . . 3 Hover 8 | . 18 24 4 7 Device 7 | . . . 10 6 Storage 3 | . 14 14 . . Processor 10 | . . 10 10 15 Hackware 2 | . . . . 13 Energy Gun 15 | . . 12 21 8 Ballistic Gun 4 | . 23 14 . 1 Peak Build Rating 51 | 6 6 26 36 51 Average Rating 30 | 4 5 15 32 43 On Entrance 14 | . 6 6 26 33 Naked Turns . | . . . . . Heaviest Build 24 | 13 13 24 24 19 Greatest Support 20 | 20 20 15 15 16 Greatest Overweight (x) 5 | 4 4 2 1 5 Average Overweight (x) 1 | . . . 1 2 Largest Inventory Capacity 8 | 8 8 8 8 5 Average Capacity 5 | 7 8 8 5 5 Most Carried 8 | 4 8 8 8 5 Average Carried 5 | 1 5 7 5 4 Final Capacity 8 | 8 8 8 5 5 Final Carried 8 | 3 7 8 5 5 Class Distribution -------------------- 70% | Mutant 17% | Hacker-Mutant 11% | Scavenger-Mutant Dominant Class ---------------- Mutant | -10/Materials Mutant | -10/Mines Mutant | -10/Subcaves Hacker-Mutant | -8/Materials Resources | -11 -10 -10 -10 -8 ----------- Run | Yrd Mat Min Sub Mat Matter Collected 988 | 268 255 182 65 218 Remotely . | . . . . . Salvage Created 947 | 108 315 158 . 366 Parts 65 | 4 25 4 . 32 Haulers Intercepted 5 | . 2 . . 3 Recyclers Shooed . | . . . . . Parts Field Recycled . | . . . . . Retrieved Matter . | . . . . . Parts Self-Destructed 16 | . . . 16 . Prevented . | . . . . . Kills | -11 -10 -10 -10 -8 ------- Run | Yrd Mat Min Sub Mat Combat Hostiles Destroyed 21 | . 9 6 . 6 Guns 17 | . 7 6 . 4 Cannons 2 | . . . . 2 AOE 2 | . 2 . . . Classes Destroyed 10 | 2 4 . . 4 Builder 2 | . 1 . . 1 Tunneler 3 | 2 . . . 1 Hauler 5 | . 2 . . 3 Recycler 1 | 1 . . . . Operator 1 | . . . . 1 Swarmer 11 | . 6 4 . 1 Grunt 7 | . 3 2 . 2 Duelist 1 | . . . . 1 Sentry 1 | . . . . 1 Hunter 1 | . . . . 1 Best Kill Streak 4 | 3 4 2 . 4 Combat Bots Only 3 | . 3 2 . 3 Max Kills in Single Turn 3 | 1 3 1 . 2 Gunslinging 1 | . 1 . . 1 Exploded 2 | . 2 . . . Melee . | . . . . . Uniques/NPCs Destroyed . | . . . . . Combat | -11 -10 -10 -10 -8 -------- Run | Yrd Mat Min Sub Mat Hostile Shots Fired 142 | . 36 42 1 63 Missed 31 | . 5 8 1 17 Damage Taken 1709 | . 366 303 74 966 Core 529 | . 116 90 . 323 Absorbed by Shields . | . . . . . Redirected to Shielding 103 | . . . . 103 Regen/Repaired (Parts) 26 | . . . . 26 Core Remaining (%) 58 | 100 . . 17 . Volleys Fired 164 | 7 46 29 35 47 Largest 2 | 2 2 2 2 2 Hottest 150 | 40 50 95 150 150 Shots Fired 286 | 14 72 49 70 81 Gun 257 | 14 69 49 70 55 Cannon 26 | . . . . 26 Launcher 3 | . 3 . . . Special . | . . . . . Kinetic 158 | 14 69 30 . 45 Thermal 125 | . . 19 70 36 Explosive 3 | . 3 . . . Electromagnetic . | . . . . . Robot Hit Streak 17 | 4 17 3 . 6 Robot Miss Streak 6 | 3 5 6 2 4 Penetration Max . | . . . . . Secondary Targets 4 | . 1 1 . 2 Max Gunslinging Chain 1 | . 1 1 . 1 Shots Hit Robots 120 | 7 51 18 . 44 Core Hits 47 | 4 20 7 . 16 Critical Kills 1 | . . . . 1 Critical Parts Destroyed 1 | . . 1 . . Critical Strikes 8 | . . 4 1 3 Burn 6 | . . 3 1 2 Destroy 2 | . . 1 . 1 Melee Attacks . | . . . . . Impact . | . . . . . Slashing . | . . . . . Piercing . | . . . . . Sneak Attacks . | . . . . . Combat Hostiles . | . . . . . Follow-up Attacks . | . . . . . Damage Inflicted 2066 | 102 570 281 42 1071 Guns 1552 | 102 491 281 42 636 Cannons 435 | . . . . 435 Explosions 79 | . 79 . . . Melee . | . . . . . Ramming . | . . . . . Kinetic 1384 | 102 491 152 . 639 Thermal 603 | . . 129 42 432 Explosive 79 | . 79 . . . Electromagnetic . | . . . . . Impact . | . . . . . Slashing . | . . . . . Piercing . | . . . . . Highest Corruption . | . . . . . Average Corruption . | . . . . . Corruption Purged . | . . . . . Corruption Blocked . | . . . . . Overload Shots . | . . . . . Overflow Damage . | . . . . . Projectiles . | . . . . . Explosions . | . . . . . Melee . | . . . . . Knockbacks 1 | . . . . 1 Impact . | . . . . . Kinetic 1 | . . . . 1 Secondary . | . . . . . Self-Inflicted Damage . | . . . . . Shots . | . . . . . Rammed . | . . . . . Targets Rammed . | . . . . . Kicked . | . . . . . Crushed . | . . . . . Highest Temperature 565 | . 63 464 90 565 Average Temperature 111 | . 21 190 25 166 Received Heat Transfer 369 | . 201 33 . 135 Effects 15 | . . 3 . 12 Shutdowns 3 | . . . . 3 Energy Bleed 2 | . . . . 2 Interference 3 | . . 1 . 2 Matter Decay 1 | . . 1 . . Damage (minor) 2 | . . 1 . 1 Damage (major) 3 | . . . . 3 Damage (core) 1 | . . . . 1 Siege Activations . | . . . . . Robots Corrupted . | . . . . . Combat Hostiles . | . . . . . Parts Fried . | . . . . . Impact Corruptions . | . . . . . Robots Melted . | . . . . . Combat Hostiles . | . . . . . Parts Melted 5 | . . 3 . 2 Heat Transferred 1517 | . . 444 148 925 Parts Sabotaged . | . . . . . Parts Stolen . | . . . . . Parts Stripped . | . . . . . Power Chain Reactions . | . . . . . Alert | -11 -10 -10 -10 -8 ------- Run | Yrd Mat Min Sub Mat Peak Influence 289 | 15 249 80 . 289 Initial 9 | . 9 5 . . Average 110 | 3 113 27 . 164 Maximum Alert Level 1 | . 1 . . 1 Low Security (%) 79 | 100 92 100 . 60 Level 1 20 | . 7 . . 39 Level 2 . | . . . . . Level 3 . | . . . . . Level 4 . | . . . . . Level 5 . | . . . . . High Security . | . . . . . Max Security . | . . . . . Squads Dispatched 6 | . 2 1 . 3 Investigation 2 | . 1 1 . . Extermination . | . . . . . Reinforcement 3 | . 1 . . 2 Assault . | . . . . . Garrison 1 | . . . . 1 Intercept . | . . . . . Searches Triggered . | . . . . . Construction Impeded . | . . . . . Haulers Reinforced . | . . . . . Active Scanning Responses . | . . . . . Cargo Convoy Interrupts . | . . . . . Stealth | -11 -10 -10 -10 -8 --------- Run | Yrd Mat Min Sub Mat Distress Signals 4 | . 1 . . 3 Communications Jammed . | . . . . . Distress Signals . | . . . . . Times Spotted 68 | . 17 8 13 30 Peak Tracking Total 6 | . 6 3 2 4 Tactical Retreats 4 | . 1 2 . 1 Traps | -11 -10 -10 -10 -8 ------- Run | Yrd Mat Min Sub Mat Traps Triggered 1 | . 1 . . . Indirectly . | . . . . . Trap Hack Attempts . | . . . . . Triggered . | . . . . . Disarmed . | . . . . . Reprogrammed . | . . . . . Reused . | . . . . . Traps Extracted . | . . . . . Installed 1 | . . 1 . . Triggered . | . . . . . Machines | -11 -10 -10 -10 -8 ---------- Run | Yrd Mat Min Sub Mat Machines Disabled 4 | . . . 2 2 Max in Single Turn 1 | . . . 1 1 Machines Repaired . | . . . . . Machines Dismantled . | . . . . . Machines Sabotaged . | . . . . . Overloaded Fab Kills . | . . . . . Hacking | -11 -10 -10 -10 -8 --------- Run | Yrd Mat Min Sub Mat Machines Accessed 11 | . 2 1 1 7 Terminals 7 | . 2 . . 5 Fabricators . | . . . . . Repair Stations 1 | . . . . 1 Recycling Units . | . . . . . Scanalyzers 1 | . . . . 1 Garrison Access . | . . . . . Total Hacks 38 | . 6 1 9 22 Successful 28 | . 4 1 9 14 Failed 10 | . 2 . . 8 Catastrophic 1 | . . . . 1 Database Lockouts . | . . . . . Manual 8 | . . . . 8 Terminals 23 | . 6 . . 17 Fabricators . | . . . . . Repair Stations 2 | . . . . 2 Recycling Units . | . . . . . Scanalyzers 3 | . . . . 3 Garrison Access . | . . . . . Terminal Hacks 21 | . 4 1 9 7 Record 9 | . . . 8 1 Prototype ID Bank 2 | . 1 . . 1 Open Door 1 | . . 1 . . Branch Access Points 1 | . . . . 1 Alert Level 3 | . 1 . . 2 Unreport Threat 2 | . 1 . . 1 Locate Traps 2 | . 1 . . 1 Derelict Proto ID Bank 1 | . . . 1 . Fabricator Hacks . | . . . . . Repair Station Hacks 2 | . . . . 2 Scan Component 1 | . . . . 1 Repair 1 | . . . . 1 Recycling Unit Hacks . | . . . . . Scanalyzer 3 | . . . . 3 Insert Component 1 | . . . . 1 Analyze 2 | . . . . 2 Garrison Access Hacks . | . . . . . Unauthorized Hacks 2 | . . . . 2 Terminals 2 | . . . . 2 Assimilate 2 | . . . . 2 Fabricators . | . . . . . Repair Stations . | . . . . . Recycling Units . | . . . . . Scanalyzers . | . . . . . Garrison Access . | . . . . . Data Cores Recovered 2 | . . . . 2 Used . | . . . . . Hacking Detections 9 | . 2 . . 7 Full Trace Events . | . . . . . Feedback Events . | . . . . . Feedback Blocked . | . . . . . Robot Schematics Acquired . | . . . . . Robots Built . | . . . . . Authchips . | . . . . . Time . | . . . . . Total Robot Build Rating . | . . . . . Part Schematics Acquired 1 | . . . . 1 Parts Built . | . . . . . Authchips . | . . . . . Time . | . . . . . Total Part Build Rating . | . . . . . Parts Repaired 1 | . . . . 1 Time 32 | . . . . 32 Parts Recycled . | . . . . . Recycled Matter . | . . . . . Retrieved Matter . | . . . . . Retrieved Components . | . . . . . Parts Scanalyzed 1 | . . . . 1 Part Schematics Acquired 1 | . . . . 1 Parts Damaged . | . . . . . Bothacking | -11 -10 -10 -10 -8 ------------ Run | Yrd Mat Min Sub Mat Used RIF Installer . | . . . . . Robots Hacked . | . . . . . Non-combat . | . . . . . Combat . | . . . . . Robot Hacks Applied . | . . . . . Relay Couplers Released . | . . . . . Fabnet Peak Effective % . | . . . . . Robots Rewired . | . . . . . Allies Hacked . | . . . . . Hacks Repelled . | . . . . . Allies | -11 -10 -10 -10 -8 -------- Run | Yrd Mat Min Sub Mat Total Allies 18 | . . . 18 . Largest Group 13 | . . . 13 12 Highest-Rated Group 247 | . . . 247 228 Highest-Rated Ally 19 | . . . 19 19 Total Orders . | . . . . . Ally Attacks 159 | . . . 54 105 Total Damage 2369 | . . . 737 1632 Kills 33 | . . . 8 25 Allies Corrupted . | . . . . . Allies Melted . | . . . . . Intel | -11 -10 -10 -10 -8 ------- Run | Yrd Mat Min Sub Mat Robot Analysis Total . | . . . . . Derelict Logs Recovered 3 | . . 1 2 . Drone Launches . | . . . . . Drone Recoveries . | . . . . . Exploration | -11 -10 -10 -10 -8 ------------- Run | Yrd Mat Min Sub Mat Turns Passed 7215 | 92 565 909 4074 1575 Spaces Moved 3805 | 61 420 546 2058 720 Core 146 | 28 27 . . 91 Treads . | . . . . . Legs 2205 | . . 60 2058 87 Wheels 233 | 33 116 . . 84 Hover 1221 | . 277 486 . 458 Flight . | . . . . . Fastest Speed 50 | 50 56 56 190 110 Average Speed 161 | 92 88 91 190 182 Slowest Speed 300 | 250 250 190 190 300 Overloaded Moves . | . . . . . Propulsion Burnouts . | . . . . . Robots Hopped . | . . . . . Cave-ins Triggered . | . . . . . Exploration Rate (%) 62 | 3 50 91 97 73 Regions Visited 4 Branch Regions 2 Pre-discovered Areas 2 | . . 1 1 . Known Exits Taken . | . . . . . Unknown Exits Taken 4 | 1 1 1 1 . Scrap Searched 15 | . . 1 14 . Spaces Dug . | . . . . . Terrain Destroyed 28 | . 22 . . 6 Melee . | . . . . . Projectile 6 | . . . . 6 AOE 22 | . 22 . . . Terrain Rammed . | . . . . . Walls Destroyed . | . . . . . Machines Disabled . | . . . . . Actions | -11 -10 -10 -10 -8 --------- Run | Yrd Mat Min Sub Mat Total 4594 | 84 547 906 2156 901 Wait 512 | . 55 311 49 97 Move 3801 | 60 419 545 2057 720 Hop . | . . . . . Pick Up 44 | 10 11 6 5 12 Fast Attach 12 | . . 5 . 7 Attach 21 | 6 4 2 1 8 Detach 1 | . . . . 1 Swap 10 | . 7 1 1 1 Drop 28 | 1 5 6 8 8 Fire 164 | 7 46 29 35 47 Melee . | . . . . . Ram . | . . . . . Kick . | . . . . . Crush . | . . . . . Escape Stasis . | . . . . . Rewire . | . . . . . Trap 1 | . . 1 . . Miscellaneous . | . . . . . Route ------- -11/Scrapyard -10/Materials (discovered 2 exits: [*Mat] / *Min) -10/Mines (discovered 3 exits: [*Mat x2] / *Sub) -10/Subcaves (discovered 3 exits: *Mat x2 / [*Rec]) -8/Materials (discovered 3 exits: *Fac x3) History --------- Turn | Location | Event 35 | -11/Scrapyard | Discovered new exit (range 16) 93 | -11/Scrapyard | Entered Materials 186 | -10/Materials | Discovered new exit (range 16) 328 | -10/Materials | Build established: Mutant 625 | -10/Materials | Discovered new exit (range 16) 658 | -10/Materials | Entered Mines 661 | -10/Mines | Met a Derelict bent on vengeance 663 | -10/Mines | Discovered new exit (range 13) 690 | -10/Mines | Found a hidden stash of uninstalled traps 809 | -10/Mines | Learned location of Zion (-6) 833 | -10/Mines | Met a Derelict shopkeep closing up shop 908 | -10/Mines | Discovered new exit (range 7) 1286 | -10/Mines | Core integrity fell below 50% 1379 | -10/Mines | Core integrity fell below 20% 1561 | -10/Mines | Discovered new exit (range 4) 1567 | -10/Mines | Entered Subcaves 1634 | -10/Subcaves | Visited triangular shrine 1676 | -10/Subcaves | Found Prototype Device 1688 | -10/Subcaves | Identified V3-11A's Pendant 1708 | -10/Subcaves | Befriended Subdweller 1709 | -10/Subcaves | Build established: Scavenger-Mutant 1770 | -10/Subcaves | Shifting Twisted Machinery released Sub. Machine Gun 1795 | -10/Subcaves | Discovered new exit (range 15) 1819 | -10/Subcaves | Shifting Twisted Machinery released Scrap Shield 1831 | -10/Subcaves | Shifting Twisted Machinery released Sub. Beam Cannon 1959 | -10/Subcaves | Approached by friendly Subdweller 1983 | -10/Subcaves | Befriended Subdweller 1988 | -10/Subcaves | Befriended Subdweller 2132 | -10/Subcaves | Shifting Twisted Machinery released Sub. Machine Gun 2224 | -10/Subcaves | Visited 4L-MR0's lab 2241 | -10/Subcaves | Found Meta Core 2243 | -10/Subcaves | Attached Meta Core, gained temporary slots: Propulsion, Utility, Weapon 2393 | -10/Subcaves | Befriended Subdweller 2393 | -10/Subcaves | Befriended Subdweller 2523 | -10/Subcaves | Befriended Subdweller 2545 | -10/Subcaves | Learned location of 1 exit from Materials 2547 | -10/Subcaves | Build established: Mutant 2568 | -10/Subcaves | Befriended Subdweller 2570 | -10/Subcaves | Discovered new exit (range 9) 2613 | -10/Subcaves | Befriended Subdweller 2613 | -10/Subcaves | Befriended Subdweller 2638 | -10/Subcaves | Befriended Subdweller 2766 | -10/Subcaves | Learned location of Storage (-7) 2883 | -10/Subcaves | Befriended Subdweller 2883 | -10/Subcaves | Befriended Subdweller 2908 | -10/Subcaves | Befriended Subdweller 2908 | -10/Subcaves | Befriended Subdweller 3382 | -10/Subcaves | A swath of the cavern ceiling suddenly collapsed 3383 | -10/Subcaves | Befriended Subdweller 3462 | -10/Subcaves | Shifting Twisted Machinery released Sub. Optics 3625 | -10/Subcaves | Disturbed a concealed Subdweller 3863 | -10/Subcaves | Befriended Subdweller 4683 | -10/Subcaves | Shifting Twisted Machinery released Sub. Beam Cannon 4763 | -10/Subcaves | Befriended Subdweller 5570 | -10/Subcaves | Discovered new exit (range 19) 5641 | -10/Subcaves | Entered Materials 5641 | -8/Materials | Accompanied by 12 allies 5641 | -8/Materials | Evolved 4 slots: Utility x4 5642 | -8/Materials | Identified exit to Factory 5959 | -8/Materials | Garrison activated, responded to threat 6004 | -8/Materials | Discovered exit to Factory (range 20) 6130 | -8/Materials | Lost 3 allies 6228 | -8/Materials | Build established: Hacker-Mutant 6513 | -8/Materials | Repaired Imp. Hover Unit 6677 | -8/Materials | Lost 3 parts (2n1u) 6987 | -8/Materials | Discovered exit to Factory (range 8) 7193 | -8/Materials | Core integrity fell below 50% 7216 | -8/Materials | Self-destructed Last Messages --------------- 07107_ Penetrated by Slug. 07112_ Imp. Terrain Scanner destroyed. 07115_ H-55 Commando knocked back. 07115_ Penetrated by Slug. 07117_ H-55 Commando destroyed. 07131_ Y-45 Defender destroyed. 07135_ Acquired 32 matter. 07142_ Acquired Gauss Rifle. 07143_ Acquired 2 matter. 07169_ K-01 Serf collects debris. 07190_ W-25 Informer sends out distress signal. 07196_ Recycling Unit disabled. 07196_ Lgt. Deuterium Engine tumbles out of recycling unit. 07199_ U-05 Engineer builds a Wall. 07201_ Slug penetrates Wall. 07204_ U-05 Engineer builds a Wall. 07204_ U-05 Engineer destroyed. 07205_ Aerolev Unit destroyed. 07211_ Slug Cannon destroyed. Map ----- +----------------------------------------------------+ | ????????#?????????#%# """ #?????? | | ??????????????????# # !!! """ #?????? | | ??????????????????#%# !! """ #?????? | | ??????????????????# # !! #?????? | | ???##########?????# ######+####+##?????? | | ???# #?????#! ??? ### #??????? | | ???# """ #?????+ ??? ???????? | | #??# """ #?????# ??? ????????? | | ???# """ #?????? ??? ????????? | | ???# ! #??????##??# ???????? | | ?#?# " ! % #??????????# ?? ??????? | | ???# " [%= #? ????????# #???????????? | | ???# "" ! #???? ?????# #???????????? | | ???# % !#????##????# #???????????? | | ########/############### #???????????? | | #???????????? | | o g #???????????? | | #????###????? | | #+######+########## ### #????? | | # T # ?# """ #????? | | """ # # ?# """ #????? | | """ # # # """ #### #????? | | """ # # # w #??????##????? | | # # + #????????????? | | """ # """ # "" #+##### #????????????? | | """ # """ # "T # #?#@#????????????? | | """ # """ # ""?# #?#/#????????????? | | # # ?# #? "????????????? | | ################??# #? ????????????? | | #?#?#?????????????# ## * ???????????? | | ?#????????#???????# ##= !???????????? | | ??????????????????# ##!Y%! ??????????? | | ???????????????????#####%!*% ??????????? | | ???????????????????????#;=####?????????? | | ??????????????????????? ##?????????????? | | ???????????????????????#???????????????? | | ???????????????????????????????????????? | | | | | | | | | | | | | | | | | | | | | | | | | | | +----------------------------------------------------+ Best States ------------- Heat Dissipation 31 Energy Generation 18 Energy Capacity 250 Matter Stores 300 Matter Capacity 300 Sight Range 20 Terrain Scan Range 16 Terrain Scan Density 10 Weapon Shielding 66 Evasion (%) 53 Targeting Accuracy 6 Target Analysis 5 Offensive Hacking 21 Defensive Hacking 10 Item Schematics ----------------- Mak. Sword | -8/Materials | Scanalyzed Robot Schematics ------------------ None Fabricated ------------ Nothing Alien Tech Used ----------------- None Achievements -------------- None Challenges ------------ None Game ------ Seed MeleePointSuite Manual? 0 Play Time 00:31:33 Cumulative 56.5 hours Start 2024.08.22 @ 18:17:22 End 2024.08.22 @ 19:03:35 Sessions 3 Manual Loads 0 Difficulty Rogue Special Mode None Game No. 91 Rogue 87 Adventurer 4 Explorer 0 Win Type - Total 0 Types 0/0/0/0/0/0/0/0/0 Lore% 27 Gallery% 41 Achievement% 32 Wizard Run 0 Options --------- Layout 2 ASCII 0 Keyboard 0 Movement Mouse Keybinds 0 Fullscreen 2 Font 24/Smallcaps Map View 50x44 Zoom Use 0% Tactical HUD 1 Map Filters NONE Filters NONE Steam 1 RUN: 20690985-1d2b-4ffe-a252-e808a7ce7509